[Event "1000IM Saint Louis 2022"]
[Site "Saint Louis"]
[Date "2022.07.22"]
[Round "7.5"]
[White "Kozelov, Roman"]
[Black "Wang, Tianqi"]
[Result "0-1"]
[ECO "B31"]
[WhiteElo "2104"]
[BlackElo "2402"]
[Annotator "TA"]
[PlyCount "126"]
[EventDate "2022.07.20"]
[EventType "tourn"]
[EventCountry "USA"]
[SourceTitle "playchess.com"]
[Source "ChessBase"]
[SourceQuality "1"]
[TimeControl "5400+30"]

{[%evp 9,126,7,12,12,14,12,14,8,18,-9,-6,-4,-11,-10,-10,-12,0,-48,-43,-107,-119,-103,-110,-111,-93,-111,-94,-135,-133,-145,-82,-76,-80,-77,-35,-38,-32,-31,-35,-75,-37,-37,-37,-32,-38,-39,-39,-46,-63,-39,-39,-46,-40,-145,-117,-158,-125,-145,-133,-225,-216,-234,-160,-237,-266,-443,-441,-429,-419,-394,-297,-417,-272,-465,-465,-465,-458,-458,-458,-458,-458,-425,-266,-492,-476,-425,-388,-256,-249,-2271,-1777,-29963,-29969,-29969,-29970,-29970,-29971,-29971,-29972,-29971,-29973,-29973,-29974,-29973,-29974,-29974,-29975,-29975,-29976,-29978,-29979,-29979,-29980,-29984,-29985,-29985,-29985,-29985,-29986]} 1. e4 {[%emt 0:00:04]} c5 {[%emt 0:00:13]} 2. Nf3 {[%emt 0:00:05]} Nc6 {[%emt 0:00:05]} 3. Bb5 {[%emt 0:00:13]} g6 {[%emt 0:00:07]} 4. O-O {[%emt 0:00:33]} Bg7 {[%emt 0:00:08]} 5. a4 {[%emt 0:01:14]} e5 {[%emt 0:05:27]} 6. d3 {[%emt 0:01:00] B31: Sicilian: 2...Nc6 3 Bb5 g6.} Nge7 {[%emt 0:00:12]} 7. Be3 {[%emt 0:02:16]} d6 {[%emt 0:00:10] [#]} 8. h3 $146 {[%emt 0:01:24] The position is equal.} ({Predecessor:} 8. c3 O-O 9. Bc4 h6 10. h3 Kh7 11. d4 cxd4 12. cxd4 d5 13. exd5 Nxd5 14. Bxd5 Qxd5 {½-½ (63) Aarland,S (2278)-Thomassen,T (2077) Gausdal 2005}) 8... h6 {[%emt 0:01:23]} 9. c3 {[%emt 0:03:15]} O-O {[%emt 0:01:44]} 10. d4 {[%emt 0:00:54]} cxd4 {[%emt 0:00:44]} 11. cxd4 {[%emt 0:00:04]} exd4 {[%emt 0:00:02]} 12. Nxd4 {[%emt 0:00:29]} d5 {[%emt 0:00:27]} 13. exd5 {[%emt 0:01:42]} (13. Nc3 $11) 13... Nxd5 $15 {[%emt 0:02:36]} 14. Bxc6 {[%emt 0:09:42]} (14. Nxc6 $15 bxc6 15. Bxc6 Nxe3 16. fxe3) 14... Nxe3 $17 {[%emt 0:00:21]} 15. fxe3 {[%emt 0:00:03]} bxc6 {[%emt 0:00:22]} 16. Nc3 {[%emt 0:00:19]} c5 {[%emt 0:02:11]} 17. Ndb5 {[%emt 0:01:15]} a6 {[%emt 0:01:15]} 18. Nd6 {[%emt 0:03:15]} Be6 {[%emt 0:00:30]} 19. Nde4 {[%emt 0:02:35]} c4 {[%emt 0:04:14]} ({Black should try} 19... Qe7 20. Qe2 f5) 20. Qxd8 {[%emt 0:02:59]} Rfxd8 {[%emt 0:00:22]} 21. Rad1 {[%emt 0:01:21]} Rdb8 {[%emt 0:08:06]} 22. Rf2 {[%emt 0:01:00]} Rb6 {[%emt 0:03:40]} 23. Nc5 {[%emt 0:05:06]} Rab8 {[%emt 0:04:09]} 24. Nxe6 {[%emt 0:05:06]} fxe6 {[%emt 0:01:06]} 25. Rdd2 {[%emt 0:00:53]} Rb3 {[%emt 0:01:06]} 26. Nd1 {[%emt 0:05:59]} Be5 $36 {[%emt 0:00:58][%mdl 2048] Black has the initiative.} 27. Rd7 {[%emt 0:01:53]} R3b7 {[%emt 0:01:47]} ({Much less strong is} 27... Bxb2 28. Nxb2 Rxb2 29. Rf6 $14) (27... R8b7 {with more complications.} 28. Rd8+ Kg7 29. Rc2 R3b4) 28. Rxb7 {[%emt 0:08:35]} Rxb7 $15 {[%emt 0:00:11][%mdl 4096] Endgame KRB-KRN} 29. Rc2 {[%emt 0:00:01]} Rb4 {[%emt 0:00:07]} 30. Nc3 {[%emt 0:01:28]} Bxc3 {[%emt 0:02:40]} 31. Rxc3 {[%emt 0:00:37] Black keeps a firm grip on the game.} ({White must play} 31. bxc3 $15 Rxa4 32. Kf2) 31... Rxa4 {[%emt 0:00:05] KR-KR} 32. Kf2 {[%emt 0:00:14]} Kf7 {[%emt 0:00:06]} 33. Kf3 {[%emt 0:00:03]} Rb4 {[%emt 0:00:14]} 34. g3 {[%emt 0:01:12]} (34. Ra3 $17) 34... Kf6 {[%emt 0:00:49]} ({Inferior is} 34... Rxb2 35. Rxc4 a5 36. Ra4 $17) 35. Ra3 {[%emt 0:01:21]} Rxb2 {[%emt 0:04:01]} 36. Rxa6 {[%emt 0:00:05] [#]} (36. Ra4 $17 {only move.}) 36... Ke5 $1 $19 {[%emt 0:00:07]} 37. Rc6 $2 {[%emt 0:02:48]} (37. g4 {was necessary.}) 37... Kd5 {[%emt 0:00:09]} 38. Rc8 {[%emt 0:00:06]} Rb6 {[%emt 0:00:43] ...Rc6 is the strong threat.} 39. Ke2 {[%emt 0:02:28]} Rc6 {[%emt 0:01:10]} 40. Rd8+ {[%emt 0:04:03]} Ke5 {[%emt 0:01:14] [#] Strongly threatening ...c3.} 41. Ra8 $2 {[%emt 0:03:52]} (41. Rg8 {is the only way for White.} Kf5 42. g4+ Kf6 43. Kd2) 41... c3 {[%emt 0:01:33][%cal Bc4c3,Bc3c2][%mdl 32]} 42. Ra5+ {[%emt 0:00:05]} Ke4 {[%emt 0:00:06] ( -> ...c2)} 43. Ra4+ {[%emt 0:00:04]} Kd5 {[%emt 0:00:04] Threatens to win with ...c2.} 44. Kd1 {[%emt 0:01:05]} c2+ {[%emt 0:00:05]} 45. Kc1 {[%emt 0:00:03]} Ke5 {[%emt 0:00:08]} 46. Rh4 $2 {[%emt 0:01:39]} (46. h4) 46... h5 {[%emt 0:02:13] And now ...Rc3 would win.} 47. Ra4 {[%emt 0:00:35]} Rc3 {[%emt 0:06:11]} 48. g4 {[%emt 0:12:02]} h4 {[%emt 0:02:03]} ({Weaker is} 48... Rxe3 49. gxh5 gxh5 50. Rh4 $17) 49. Ra5+ $2 {[%emt 0:03:01]} (49. g5) 49... Ke4 {[%emt 0:01:29]} 50. Ra6 {[%emt 0:00:56]} Kf3 {[%emt 0:12:20] Black mates.} 51. Rxe6 {[%emt 0:00:23]} Kg3 {[%emt 0:00:07]} 52. Rxg6 {[%emt 0:00:05]} Kxh3 {[%emt 0:00:02]} 53. Rh6 {[%emt 0:04:46]} Kg3 {[%emt 0:06:33]} 54. g5 {[%emt 0:04:04]} Rxe3 {[%emt 0:03:12]} 55. g6 {[%emt 0:01:09]} Re4 {[%emt 0:00:14]} 56. g7 {[%emt 0:02:56]} Rg4 {[%emt 0:00:03]} 57. Rc6 {[%emt 0:01:19]} Rxg7 {[%emt 0:01:10]} 58. Rc3+ {[%emt 0:00:13]} Kh2 {[%emt 0:01:11]} 59. Rxc2+ {[%emt 0:00:06]} Rg2 {[%emt 0:00:04]} 60. Rc3 {[%emt 0:00:26]} h3 {[%emt 0:00:10]} 61. Kd1 {[%emt 0:00:12]} Rg3 {[%emt 0:00:46]} 62. Rc8 {[%emt 0:01:11]} Kg2 {[%emt 0:00:07]} 63. Rc2+ {[%emt 0:00:09]} Kg1 {[%emt 0:00:06] Weighted Error Value: White=0.45/Black=0.12 (very precise)} 0-1

[Event "1000IM Saint Louis 2022"]
[Site "Saint Louis"]
[Date "2022.07.22"]
[Round "8.1"]
[White "Cervantes Landeiro, Thalia"]
[Black "Wang, Tianqi"]
[Result "1/2-1/2"]
[ECO "D37"]
[WhiteElo "2234"]
[BlackElo "2402"]
[Annotator "TA"]
[PlyCount "42"]
[EventDate "2022.07.20"]
[EventType "tourn"]
[EventCountry "USA"]
[SourceTitle "playchess.com"]
[Source "ChessBase"]
[SourceQuality "1"]
[TimeControl "5400+30"]

{[%evp 13,42,15,20,11,11,0,1,0,21,16,29,26,33,25,28,4,11,1,4,6,23,4,15,5,5,4,60,20,14,20,21]} 1. d4 {[%emt 0:00:03]} d5 {[%emt 0:00:27]} 2. c4 {[%emt 0:00:09]} e6 {[%emt 0:00:06]} 3. Nc3 {[%emt 0:00:07]} Be7 {[%emt 0:00:06]} 4. Nf3 {[%emt 0:00:26]} Nf6 {[%emt 0:00:08]} 5. Bf4 {[%emt 0:00:43]} O-O {[%emt 0:00:13]} 6. e3 {[%emt 0:00:14]} Nbd7 {[%emt 0:00:09][%cal Bb8d7,Bd7c5,Bc5e6][%mdl 32]} 7. cxd5 {[%emt 0:07:01]} Nxd5 {[%emt 0:06:12]} 8. Nxd5 {[%emt 0:01:31] D37: Queen's Gambit Declined: 5 Bf4.} exd5 {[%emt 0:00:05]} 9. Bd3 {[%emt 0:00:37]} c5 {[%emt 0:00:09]} 10. dxc5 {[%emt 0:02:25]} Nxc5 {[%emt 0:00:11]} 11. O-O {[%emt 0:02:05]} Bg4 {[%emt 0:02:36]} 12. Be2 {[%emt 0:02:30]} Bf6 {[%emt 0:00:48]} 13. h3 {[%emt 0:08:28]} Bh5 {[%emt 0:00:53]} 14. Rc1 {[%emt 0:11:38]} Ne6 {[%emt 0:01:11]} 15. Bg3 {[%emt 0:01:24]} Qa5 {[%emt 0:08:15]} 16. Qb3 {[%emt 0:02:47] [#]} Rfd8 $146 {[%emt 0:00:32] Inhibits Bd6.} ({Predecessor:} 16... d4 17. exd4 Bxf3 18. Bxf3 Nxd4 19. Qxb7 Nxf3+ 20. Qxf3 Qxa2 21. b3 Rac8 22. Qb7 Rc2 23. Rxc2 Qxc2 24. Qxa7 Qxb3 25. Re1 h5 26. Qe3 Qxe3 {½-½ (26) Nguyen,A (2500)-Toufighi,H (2499) Khanty-Mansiysk 2010}) 17. a3 {[%emt 0:03:51]} Qb6 {[%emt 0:14:48]} 18. Qxb6 {[%emt 0:03:33]} axb6 {[%emt 0:00:17]} 19. Rc2 {[%emt 0:00:41]} Rdc8 {[%emt 0:10:37]} (19... d4 $11 20. Nxd4 Nxd4 21. exd4 Bg6) 20. Rfc1 {[%emt 0:02:01]} Rc5 {[%emt 0:00:43][%cal Of6b2]} 21. Bd6 {[%emt 0:02:40]} Rxc2 {[%emt 0:20:25] Weighted Error Value: White=0.07 (flawless) /Black=0.12 (very precise)} 1/2-1/2

[Event "1000IM Saint Louis 2022"]
[Site "Saint Louis"]
[Date "2022.07.22"]
[Round "8.2"]
[White "Tokhirjonova, Gulrukhbegim"]
[Black "Kozelov, Roman"]
[Result "1-0"]
[ECO "C02"]
[WhiteElo "2329"]
[BlackElo "2104"]
[Annotator "TA"]
[PlyCount "95"]
[EventDate "2022.07.20"]
[EventType "tourn"]
[EventCountry "USA"]
[SourceTitle "playchess.com"]
[Source "ChessBase"]
[SourceQuality "1"]
[TimeControl "5400+30"]

{[%evp 9,95,26,35,28,37,15,22,25,42,35,33,36,47,18,17,18,27,28,33,31,36,29,44,33,44,66,54,42,43,49,95,95,95,116,126,77,69,71,68,54,83,97,103,0,50,18,140,135,154,173,210,211,210,210,210,209,194,158,140,116,277,251,345,345,345,345,544,345,345,259,346,343,690,523,733,737,700,665,728,733,1046,1027,1163,1166,1616,1604,1506,1425]} 1. e4 {[%emt 0:00:39]} e6 {[%emt 0:00:05]} 2. d4 {[%emt 0:00:09]} d5 {[%emt 0:00:04]} 3. e5 {[%emt 0:00:24]} b6 {[%emt 0:00:05]} 4. h4 {[%emt 0:00:41]} Qd7 {[%emt 0:00:07]} 5. h5 {[%emt 0:00:45]} h6 {[%emt 0:00:04]} 6. c3 {[%emt 0:00:33] C02: French: Advance Variation.} Ne7 {[%emt 0:00:09]} 7. Nd2 {[%emt 0:01:37]} c5 {[%emt 0:00:16] [#]} 8. Ndf3 $146 {[%emt 0:00:52] The position is equal.} ({Predecessor:} 8. Nh3 Ba6 9. Bxa6 Nxa6 10. Nf4 O-O-O 11. a3 Kb7 12. b4 cxd4 13. cxd4 Rc8 14. Rh3 {1-0 (32) Ivanovic,B (2530)-Gonzalez Rodriguez,J (2375) Saint John 1988}) 8... Ba6 {[%emt 0:00:45]} 9. Bxa6 {[%emt 0:01:02]} Nxa6 {[%emt 0:00:04]} 10. Ne2 {[%emt 0:00:25]} Nc6 {[%emt 0:05:35]} 11. a3 {[%emt 0:02:19]} c4 {[%emt 0:02:09]} 12. Bf4 {[%emt 0:01:24]} Na5 {[%emt 0:00:20]} 13. Nd2 {[%emt 0:03:54]} b5 {[%emt 0:03:22]} 14. Rh3 {[%emt 0:01:30]} Nc7 {[%emt 0:01:11]} 15. Rg3 {[%emt 0:00:18]} Nc6 {[%emt 0:00:17]} 16. b3 {[%emt 0:04:21]} a5 {[%emt 0:02:24]} 17. a4 {[%emt 0:09:22]} cxb3 {[%emt 0:14:01]} 18. Nxb3 {[%emt 0:00:00]} bxa4 {[%emt 0:03:54]} 19. Rxa4 {[%emt 0:00:00]} Nb5 {[%emt 0:02:36]} (19... Ra7 $14 {feels stronger.}) 20. Qa1 $16 {[%emt 0:00:00]} Qb7 {[%emt 0:02:42]} 21. Bd2 {[%emt 0:00:00]} ({Reject} 21. Nxa5 $6 Qa6 $11) 21... Qb6 {[%emt 0:01:33]} 22. Nec1 {[%emt 0:00:00]} ({White should try} 22. c4 dxc4 23. Rxc4) 22... Nc7 {[%emt 0:02:56]} 23. Qa2 $1 {[%emt 0:00:00]} Qb5 {[%emt 0:01:37]} 24. Nd3 {[%emt 0:01:47]} Be7 {[%emt 0:00:41]} 25. Nbc5 {[%emt 0:06:45]} Na6 {[%emt 0:01:10]} 26. Nb3 {[%emt 0:01:43]} (26. Nxa6 $16 {Threatens to win with Nc7+.} Rxa6 27. Qc2) 26... Nc7 $14 {[%emt 0:00:10]} 27. Ndc5 {[%emt 0:01:38]} (27. Nbc1 $5 {[%cal Rg3g7]}) 27... Bxc5 {[%emt 0:01:36]} (27... Kf8 $11) 28. Nxc5 $16 {[%emt 0:02:32]} Rb8 {[%emt 0:01:42]} 29. Rxg7 {[%emt 0:02:57] White is more active.} Na6 {[%emt 0:10:33]} 30. Nxa6 {[%emt 0:03:15]} Qxa6 {[%emt 0:00:03]} 31. Qc2 {[%emt 0:00:38] Against Qd3} Qb5 {[%emt 0:04:42]} 32. Ra1 {[%emt 0:01:27] Inhibits Qb1+.} Qc4 {[%emt 0:00:00]} 33. Qd1 {[%emt 0:07:17]} Rb3 {[%emt 0:05:38]} 34. Rg3 {[%emt 0:01:36]} ({Don't do} 34. Qf3 $6 Rf8 $14) 34... a4 $2 {[%emt 0:00:33] Black cannot hold the game after this.} (34... Qb5 $16) 35. Qe2 $18 {[%emt 0:02:07] aiming for Qxc4.} Na5 {[%emt 0:06:47]} 36. Qxc4 {[%emt 0:00:19]} Nxc4 {[%emt 0:00:03]} 37. Rxa4 {[%emt 0:00:12]} Kd7 {[%emt 0:00:19]} (37... Ra3 $142) 38. Rb4 {[%emt 0:01:41]} Ra3 {[%emt 0:00:35]} 39. Rb1 {[%emt 0:00:40] [#] Against Ra1. And now Rg7 would win.} ({Resist} 39. Rb7+ Kc6 $18) 39... Ra2 {[%emt 0:00:32]} 40. Bc1 {[%emt 0:01:05]} Rha8 $2 {[%emt 0:01:22]} (40... Kc6 41. Rf3 Rh7) 41. Rf3 {[%emt 0:00:34] White is clearly winning.} Rc2 {[%emt 0:00:56]} 42. Rxf7+ {[%emt 0:00:20]} Kc6 {[%emt 0:00:04]} 43. Rf3 {[%emt 0:01:53]} Raa2 {[%emt 0:00:19]} 44. Bxh6 {[%emt 0:00:41]} Nb2 {[%emt 0:05:30]} 45. Rc1 {[%emt 0:00:36]} Nd3+ {[%emt 0:00:57]} 46. Rxd3 {[%emt 0:00:51] [#] Hoping for Rxc2.} Re2+ {[%emt 0:00:18]} 47. Kd1 {[%emt 0:00:06]} Rxf2 {[%emt 0:00:05]} 48. Rd2 {[%emt 0:00:23] Weighted Error Value: White=0.21 (precise) /Black=0.36} 1-0

[Event "1000IM Saint Louis 2022"]
[Site "Saint Louis"]
[Date "2022.07.22"]
[Round "8.3"]
[White "Sethuraman, Sandeep"]
[Black "Nyzhnyk, Illya"]
[Result "0-1"]
[ECO "E62"]
[WhiteElo "2305"]
[BlackElo "2686"]
[Annotator "TA"]
[PlyCount "86"]
[EventDate "2022.07.20"]
[EventType "tourn"]
[EventCountry "USA"]
[SourceTitle "playchess.com"]
[Source "ChessBase"]
[SourceQuality "1"]
[TimeControl "5400+30"]

{[%evp 28,86,39,29,35,19,37,33,35,28,42,18,21,23,25,33,57,59,59,66,70,60,65,27,47,25,29,18,22,20,38,35,36,20,28,-100,-94,-184,-184,-176,-168,-177,-171,-291,-276,-214,-261,-264,-240,-228,-237,-245,-182,-1756,-1704,-1650,-1377,-5402,-10210,-1686,-1501]} 1. d4 {[%emt 0:00:02]} Nf6 {[%emt 0:00:18]} 2. c4 {[%emt 0:00:05]} d6 {[%emt 0:00:17]} 3. Nf3 {[%emt 0:00:18]} g6 {[%emt 0:00:10]} 4. g3 {[%emt 0:00:14]} Bg7 {[%emt 0:00:05]} 5. Bg2 {[%emt 0:00:05]} O-O {[%emt 0:00:11]} 6. Nc3 {[%emt 0:00:04]} Nc6 {[%emt 0:00:06]} 7. O-O {[%emt 0:00:06]} Bg4 {[%emt 0:00:04]} 8. d5 {[%emt 0:00:06]} Na5 {[%emt 0:02:05]} 9. Nd2 {[%emt 0:00:13]} c5 {[%emt 0:00:04]} 10. Qc2 {[%emt 0:00:22]} a6 {[%emt 0:00:46]} 11. h3 {[%emt 0:01:08]} Bd7 {[%emt 0:00:07]} 12. b3 {[%emt 0:00:12]} b5 {[%emt 0:01:40]} 13. Bb2 {[%emt 0:00:16]} Rb8 {[%emt 0:01:15]} 14. Rab1 {[%emt 0:01:00]} Qc7 {[%emt 0:07:08]} 15. e4 {[%emt 0:05:51]} bxc4 {[%emt 0:00:08] E62: King's Indian: Fianchetto: 6...c6 and Panno Variation (6...Nc6) without ...a6.} 16. bxc4 {[%emt 0:00:45]} Rb4 {[%emt 0:00:22]} 17. Ba3 {[%emt 0:09:14]} Rxb1 {[%emt 0:00:04] White is slightly better.} 18. Rxb1 {[%emt 0:00:52]} Rb8 {[%emt 0:00:06] [#]} 19. Nd1 $146 {[%emt 0:08:14]} ({Predecessor:} 19. Ne2 Rb6 20. f4 Qb8 21. Rxb6 Qxb6 22. g4 Ne8 23. Nf3 e6 24. e5 Nc7 25. exd6 Qxd6 {1-0 (49) Laylo,D (2502)-Djuraev,S (2375) Ho Chi Minh City 2012}) 19... Rxb1 {[%emt 0:01:49]} 20. Nxb1 {[%emt 0:08:11]} Qb6 {[%emt 0:03:09][%cal Oa5c4]} 21. Bb2 {[%emt 0:02:39]} Bh6 {[%emt 0:13:05]} 22. f4 {[%emt 0:13:34]} Nh5 {[%emt 0:00:24]} 23. Kh2 {[%emt 0:02:35]} (23. Qc3 $2 Bg7 24. Qc1 (24. e5 $2 Ba4 $19) 24... Nxg3 $17) 23... Bg7 {[%emt 0:06:35][%cal Oa5c4]} 24. Bxg7 {[%emt 0:07:13]} (24. Nd2 {with more complications.} Bd4 25. Bc3 f6 26. Qd3) 24... Nxg7 {[%emt 0:00:05]} 25. Nb2 {[%emt 0:00:21]} Ne8 {[%emt 0:01:18]} 26. Bf1 {[%emt 0:05:59]} e5 {[%emt 0:01:20]} 27. Qc3 {[%emt 0:04:32]} f6 {[%emt 0:07:08]} 28. Nd2 {[%emt 0:00:17]} Nc7 {[%emt 0:00:04]} 29. Be2 {[%emt 0:03:02]} Nb7 {[%emt 0:00:15]} 30. Bd1 {[%emt 0:02:27]} Qb4 {[%emt 0:03:39]} 31. Qxb4 {[%emt 0:03:54]} (31. Qc2 $11) 31... cxb4 $17 {[%emt 0:00:01]} 32. Ba4 {[%emt 0:00:01]} (32. Nd3 $17) 32... Bxa4 $1 $19 {[%emt 0:00:07]} 33. Nxa4 {[%emt 0:00:03][%mdl 4096] Endgame KNN-KNN} a5 $1 {[%emt 0:00:04][%cal Ba6a5,Ba5a4,Ba4a3][%mdl 32]} 34. fxe5 {[%emt 0:13:00]} fxe5 {[%emt 0:00:04]} 35. Nb3 {[%emt 0:01:02]} (35. c5 $142 Nxc5 36. Nxc5 dxc5 37. Nb3) 35... Na6 {[%emt 0:00:03] ...Nac5 is the strong threat.} 36. Kg2 {[%emt 0:00:41] [#]} Nac5 $1 {[%emt 0:00:11]} 37. Naxc5 {[%emt 0:01:34]} dxc5 {[%emt 0:00:12] KN-KN} 38. Kf3 {[%emt 0:01:23] [#]} a4 $1 {[%emt 0:00:04]} 39. Nc1 {[%emt 0:00:05]} Na5 {[%emt 0:01:45]} 40. Nd3 $2 {[%emt 0:03:44]} (40. Ke2) 40... b3 {[%emt 0:00:19] Black is clearly winning.} 41. axb3 {[%emt 0:00:08]} Nxb3 {[%emt 0:00:05] Hoping for ...a3.} 42. Nxe5 {[%emt 0:00:43]} a3 {[%emt 0:00:09]} 43. d6 {[%emt 0:00:03]} Nd4+ {[%emt 0:00:12] Weighted Error Value: White=0.68/Black=0.05 (flawless)} 0-1

[Event "1000IM Saint Louis 2022"]
[Site "Saint Louis"]
[Date "2022.07.22"]
[Round "8.4"]
[White "Proleiko, Julian"]
[Black "Altman, Joshua"]
[Result "1-0"]
[ECO "A17"]
[WhiteElo "2238"]
[BlackElo "2162"]
[Annotator "TA"]
[PlyCount "113"]
[EventDate "2022.07.20"]
[EventType "tourn"]
[EventCountry "USA"]
[SourceTitle "playchess.com"]
[Source "ChessBase"]
[SourceQuality "1"]
[TimeControl "5400+30"]

{[%evp 9,113,0,0,0,-12,-20,-20,-26,-18,-58,-16,-14,0,-50,-18,-25,0,0,0,0,0,-20,-15,-15,-24,-22,0,0,0,0,0,0,0,0,0,0,0,0,0,0,68,-14,25,0,35,0,68,0,26,5,23,0,39,0,68,68,68,30,37,0,0,0,0,0,0,0,1187,1329,1330,1338,1177,1137,1153,1112,1179,1131,1310,1307,1211,1049,452,932,1199,1146,1145,0,1078,1111,1185,1089,1204,1178,1070,997,839,722,356,121,5502,2334,5539,5439,2554,2189,11745,5330]} 1. Nf3 {[%emt 0:00:04]} Nf6 {[%emt 0:01:10]} 2. c4 {[%emt 0:00:13]} e6 {[%emt 0:00:14]} 3. Nc3 {[%emt 0:00:23]} Bb4 {[%emt 0:01:15]} 4. Qc2 {[%emt 0:00:06]} O-O {[%emt 0:04:06]} 5. e4 {[%emt 0:02:50]} d6 {[%emt 0:00:48]} 6. d4 {[%emt 0:01:43] A17: English Opening: 1...Nf6 with ...Bb4.} e5 {[%emt 0:11:05]} 7. d5 {[%emt 0:05:29]} Bxc3+ {[%emt 0:06:08]} 8. bxc3 {[%emt 0:00:04] The position is equal.} Nbd7 {[%emt 0:01:10]} 9. Bg5 {[%emt 0:00:07]} Nc5 {[%emt 0:02:49] [#]} (9... h6 $5 {[%cal Rh6g5]} 10. Bh4 g5 $15) 10. Nd2 $146 {[%emt 0:00:08]} ({Predecessor:} 10. Bd3 h6 11. Bxf6 Qxf6 12. O-O b6 13. Nd2 Qg5 14. f4 exf4 15. Nf3 Qg4 16. Nd4 {0-1 (63) Jacobsen,H (1918)-Nielsen,A (2178) Helsingor 2018}) 10... Bd7 {[%emt 0:07:30]} 11. Bd3 {[%emt 0:02:21]} ({Better is} 11. f3 $11) 11... a6 {[%emt 0:05:49]} 12. Nb3 {[%emt 0:00:26]} b6 {[%emt 0:06:30]} 13. Nxc5 {[%emt 0:00:13]} bxc5 {[%emt 0:00:12]} 14. Qe2 {[%emt 0:04:05]} h6 {[%emt 0:01:31]} 15. Bh4 {[%emt 0:00:05]} Rb8 {[%emt 0:05:35]} (15... g5 $5 16. Bg3 Ne8 $11) 16. O-O {[%emt 0:00:34]} g5 {[%emt 0:01:02]} 17. Bg3 {[%emt 0:00:04]} Nxe4 {[%emt 0:14:28]} 18. Bxe4 {[%emt 0:00:40]} f5 {[%emt 0:00:03]} 19. Bc2 {[%emt 0:03:36] [#] Black must now prevent f3.} f4 $1 {[%emt 0:00:08]} 20. h3 {[%emt 0:06:04] Strongly threatening Bh2.} fxg3 {[%emt 0:00:35]} 21. fxg3 {[%emt 0:03:25]} Qe7 {[%emt 0:01:25]} 22. g4 {[%emt 0:01:22]} Rxf1+ {[%emt 0:02:28]} 23. Rxf1 {[%emt 0:00:02]} Rf8 {[%emt 0:00:31]} 24. Rb1 {[%emt 0:00:36]} Qf7 {[%emt 0:03:37]} (24... h5 $11) 25. Qe4 {[%emt 0:02:02]} (25. Rb7 $14) 25... Bc8 {[%emt 0:04:32]} 26. Bd3 {[%emt 0:01:19]} Qg7 {[%emt 0:04:51]} 27. Qe3 {[%emt 0:02:24]} Qf6 {[%emt 0:01:17]} (27... Bd7 $11) 28. Qe4 {[%emt 0:02:50]} (28. Rb8 $14) 28... Qf7 {[%emt 0:01:45]} 29. Kh1 {[%emt 0:03:16] Active counter play!} Qg7 {[%emt 0:00:38]} 30. Rb8 {[%emt 0:00:26]} Qf7 {[%emt 0:03:02]} (30... Bd7 $5 {[%cal Rf8b8]} 31. Rb7 Rf4 $14) 31. Ra8 {[%emt 0:02:12]} Qg7 {[%emt 0:03:36]} (31... h5 $1 $11) 32. a4 $14 {[%emt 0:01:17]} Qf7 {[%emt 0:00:29]} 33. a5 {[%emt 0:00:15]} h5 {[%emt 0:02:36]} 34. Qe3 {[%emt 0:03:39]} hxg4 {[%emt 0:02:26]} 35. Qxg5+ {[%emt 0:00:05]} Qg7 {[%emt 0:00:42]} 36. Qxg7+ {[%emt 0:00:14]} Kxg7 {[%emt 0:00:04]} 37. hxg4 {[%emt 0:00:09]} Bb7 $2 {[%emt 0:01:34][%mdl 8192]} (37... Bxg4 $11 38. Rxf8 Kxf8) 38. Rxf8 $18 {[%emt 0:03:28]} Kxf8 {[%emt 0:00:05][%mdl 4096] Endgame KB-KB} 39. Bf5 {[%emt 0:00:02]} Kg7 {[%emt 0:00:34]} 40. Bd7 {[%emt 0:00:36]} Kf6 {[%emt 0:00:23]} 41. Kg1 {[%emt 0:00:04]} Kg5 {[%emt 0:00:13]} 42. Kf2 {[%emt 0:00:04]} Kf4 {[%emt 0:00:13]} 43. g3+ {[%emt 0:00:05]} Kg5 {[%emt 0:00:17]} 44. Kf3 {[%emt 0:01:19]} Kg6 {[%emt 0:00:09]} 45. Kg2 {[%emt 0:01:39]} (45. Ke2 $142 Kg5 46. Kf3) 45... Kf6 {[%emt 0:00:46]} 46. Kh3 {[%emt 0:00:09]} Kg5 {[%emt 0:00:06]} 47. Kg2 {[%emt 0:02:08]} Kf6 $1 {[%emt 0:00:06]} 48. g5+ {[%emt 0:02:21]} Kg6 {[%emt 0:00:19]} 49. g4 {[%emt 0:00:26]} Kxg5 {[%emt 0:00:21]} 50. Kg3 {[%emt 0:00:04]} Kf6 {[%emt 0:00:40]} 51. Kh4 {[%emt 0:00:08]} Kg6 {[%emt 0:00:58]} 52. Bf5+ {[%emt 0:00:22]} Kf6 {[%emt 0:00:41] [#]} 53. Kh5 $2 {[%emt 0:03:09]} (53. Be6 $1 $18 {and the rest is easy.}) 53... Kg7 $2 {[%emt 0:01:49][%mdl 8192] This costs Black the game.} (53... c6 $16) 54. Kg5 {[%emt 0:01:31] Hoping for Bd7. White is clearly winning.} c6 {[%emt 0:01:26]} 55. dxc6 {[%emt 0:01:24]} Bxc6 {[%emt 0:00:03]} 56. Bc8 {[%emt 0:00:05]} e4 {[%emt 0:00:34]} 57. Kf4 {[%emt 0:00:06] Weighted Error Value: White=0.40/Black=0.22 (precise)} 1-0